[Event "Titled Tuesday Blitz March 01 Late 2022"]
[White "Makarian, Rudik"]
[Black "Lopez Gracia, Fernando"]
[WhiteFideId "44105681"]
[BlackFideId "2207184"]
[WhiteElo "2486"]
[BlackElo "2434"]
[Result "1-0"]
[Round "01"]
[TimeControl "180+1"]
[Date "2022.03.01"]
[WhiteClock "0:02:19"]
[BlackClock "0:00:19"]

1. e4 {[%clk 0:03:00]}  e5 {[%clk 0:02:58]} 2. Nf3 {[%clk 0:03:01]}  Nc6 {[%clk 0:02:58]} 3. Bb5 {[%clk 0:03:01]}  a6 {[%clk 0:02:56]} 4. Ba4 {[%clk 0:03:02]}  Nf6 {[%clk 0:02:57]} 5. O-O {[%clk 0:03:02]}  Bc5 {[%clk 0:02:57]} 6. Bxc6 {[%clk 0:03:02]}  dxc6 {[%clk 0:02:56]} 7. d3 {[%clk 0:03:02]}  Nd7 {[%clk 0:02:52]} 8. Nbd2 {[%clk 0:03:01]}  O-O {[%clk 0:02:50]} 9. Nc4 {[%clk 0:03:00]}  Qe7 {[%clk 0:02:45]} 10. Be3 {[%clk 0:02:59]}  f5 {[%clk 0:02:27]} 11. exf5 {[%clk 0:02:57]}  Rxf5 {[%clk 0:02:25]} 12. Nfd2 {[%clk 0:02:57]}  Nb6 {[%clk 0:02:16]} 13. Bxc5 {[%clk 0:02:56]}  Qxc5 {[%clk 0:02:15]} 14. Ne4 {[%clk 0:02:57]}  Qd4 {[%clk 0:02:12]} 15. Nxb6 {[%clk 0:02:50]}  Qxb6 {[%clk 0:02:05]} 16. Rb1 {[%clk 0:02:49]}  Be6 {[%clk 0:02:05]} 17. b3 {[%clk 0:02:49]}  Bd5 {[%clk 0:02:04]} 18. Qe2 {[%clk 0:02:46]}  Raf8 {[%clk 0:02:02]} 19. Rbe1 {[%clk 0:02:45]}  Bxe4 {[%clk 0:01:52]} 20. dxe4 {[%clk 0:02:46]}  R5f6 {[%clk 0:01:52]} 21. g3 {[%clk 0:02:41]}  Qd4 {[%clk 0:01:41]} 22. Kg2 {[%clk 0:02:39]}  Qc3 {[%clk 0:01:40]} 23. Rd1 {[%clk 0:02:37]}  h6 {[%clk 0:01:35]} 24. h4 {[%clk 0:02:35]}  Qf3+ {[%clk 0:01:26]} 25. Qxf3 {[%clk 0:02:35]}  Rxf3 {[%clk 0:01:26]} 26. Rd7 {[%clk 0:02:34]}  R3f7 {[%clk 0:01:20]} 27. Rxf7 {[%clk 0:02:33]}  Kxf7 {[%clk 0:01:20]} 28. Rd1 {[%clk 0:02:31]}  Ke6 {[%clk 0:01:20]} 29. h5 {[%clk 0:02:30]}  g6 {[%clk 0:01:14]} 30. hxg6 {[%clk 0:02:30]}  Rg8 {[%clk 0:01:14]} 31. f4 {[%clk 0:02:30]}  exf4 {[%clk 0:01:12]} 32. gxf4 {[%clk 0:02:31]}  Rxg6+ {[%clk 0:01:12]} 33. Kf3 {[%clk 0:02:31]}  Rg7 {[%clk 0:01:05]} 34. Rh1 {[%clk 0:02:30]}  Rh7 {[%clk 0:01:02]} 35. e5 {[%clk 0:02:31]}  Kf5 {[%clk 0:01:01]} 36. Rh5+ {[%clk 0:02:31]}  Kg6 {[%clk 0:01:01]} 37. Kg4 {[%clk 0:02:31]}  Rd7 {[%clk 0:00:49]} 38. f5+ {[%clk 0:02:29]}  Kg7 {[%clk 0:00:49]} 39. Rh3 {[%clk 0:02:23]}  Rd2 {[%clk 0:00:47]} 40. Kf4 {[%clk 0:02:19]}  Rf2+ {[%clk 0:00:43]} 41. Rf3 {[%clk 0:02:19]}  Rxc2 {[%clk 0:00:35]} 42. Rg3+ {[%clk 0:02:20]}  Kf7 {[%clk 0:00:34]} 43. e6+ {[%clk 0:02:20]}  Kf6 {[%clk 0:00:26]} 44. Rg6+ {[%clk 0:02:20]}  Ke7 {[%clk 0:00:26]} 45. Rg7+ {[%clk 0:02:20]}  Kf8 {[%clk 0:00:23]} 46. Rxc7 {[%clk 0:02:20]}  Rf2+ {[%clk 0:00:20]} 47. Ke5 {[%clk 0:02:20]}  h5 {[%clk 0:00:20]} 48. Kf6 {[%clk 0:02:19]}  Kg8 {[%clk 0:00:19]} 49. e7 {[%clk 0:02:19]} 1-0


[Site "https://www.chess.com"]

[Event "Titled Tuesday Blitz March 01 Late 2022"]
[White "Martin Barcelo, Carles"]
[Black "Zakhartsov, Vladimir"]
[WhiteFideId "24561444"]
[BlackFideId "4145097"]
[WhiteElo "1875"]
[BlackElo "2432"]
[Result "0-1"]
[Round "01"]
[TimeControl "180+1"]
[Date "2022.03.02"]
[WhiteClock "0:00:07"]
[BlackClock "0:01:23"]

1. e4 {[%clk 0:03:00]}  c5 {[%clk 0:02:59]} 2. Nf3 {[%clk 0:03:00]}  Nc6 {[%clk 0:02:59]} 3. Bb5 {[%clk 0:02:59]}  g6 {[%clk 0:02:58]} 4. O-O {[%clk 0:02:56]}  Bg7 {[%clk 0:02:59]} 5. c3 {[%clk 0:02:56]}  e5 {[%clk 0:02:59]} 6. d4 {[%clk 0:02:51]}  cxd4 {[%clk 0:02:57]} 7. cxd4 {[%clk 0:02:51]}  exd4 {[%clk 0:02:58]} 8. Bf4 {[%clk 0:02:51]}  Nge7 {[%clk 0:02:58]} 9. Bd6 {[%clk 0:02:48]}  a6 {[%clk 0:02:58]} 10. Bc4 {[%clk 0:02:24]}  b5 {[%clk 0:02:58]} 11. Bb3 {[%clk 0:02:12]}  Bb7 {[%clk 0:02:57]} 12. Ng5 {[%clk 0:01:52]}  O-O {[%clk 0:02:52]} 13. Qf3 {[%clk 0:01:52]}  Qe8 {[%clk 0:02:51]} 14. Qg3 {[%clk 0:01:51]}  Na5 {[%clk 0:02:38]} 15. Nd2 {[%clk 0:01:50]}  Nxb3 {[%clk 0:02:34]} 16. Qxb3 {[%clk 0:01:28]}  h6 {[%clk 0:02:34]} 17. Ngf3 {[%clk 0:01:28]}  Qd8 {[%clk 0:02:34]} 18. e5 {[%clk 0:01:21]}  Re8 {[%clk 0:02:29]} 19. Nxd4 {[%clk 0:01:21]}  Nc6 {[%clk 0:02:29]} 20. Nxc6 {[%clk 0:01:17]}  Bxc6 {[%clk 0:02:30]} 21. f4 {[%clk 0:01:12]}  Rc8 {[%clk 0:02:22]} 22. Rac1 {[%clk 0:01:10]}  Qb6+ {[%clk 0:02:21]} 23. Kh1 {[%clk 0:01:10]}  Bb7 {[%clk 0:02:21]} 24. Nf3 {[%clk 0:01:06]}  Rxc1 {[%clk 0:02:15]} 25. Rxc1 {[%clk 0:01:06]}  Qf2 {[%clk 0:02:16]} 26. Qc2 {[%clk 0:00:29]}  Qe3 {[%clk 0:02:08]} 27. Qd2 {[%clk 0:00:28]}  Qe4 {[%clk 0:02:02]} 28. Re1 {[%clk 0:00:25]}  Qf5 {[%clk 0:01:51]} 29. Nd4 {[%clk 0:00:18]}  Qg4 {[%clk 0:01:49]} 30. Rc1 {[%clk 0:00:14]}  h5 {[%clk 0:01:47]} 31. Qf2 {[%clk 0:00:14]}  h4 {[%clk 0:01:45]} 32. Nf3 {[%clk 0:00:07]}  h3 {[%clk 0:01:44]} 33. Rf1 {[%clk 0:00:07]}  hxg2+ {[%clk 0:01:30]} 34. Qxg2 {[%clk 0:00:08]}  Qxf4 {[%clk 0:01:31]} 35. Qg3 {[%clk 0:00:08]}  Qxg3 {[%clk 0:01:23]} 36. hxg3 {[%clk 0:00:09]}  Bxe5 {[%clk 0:01:23]} 37. Bxe5 {[%clk 0:00:07]}  Rxe5 {[%clk 0:01:24]} 38. Kh2 {[%clk 0:00:06]}  Re2+ {[%clk 0:01:22]} 39. Kh3 {[%clk 0:00:07]}  Bxf3 {[%clk 0:01:22]} 40. Rxf3 {[%clk 0:00:06]}  Rxb2 {[%clk 0:01:22]} 41. Rd3 {[%clk 0:00:07]}  Rxa2 {[%clk 0:01:22]} 42. Rxd7 {[%clk 0:00:07]}  b4 {[%clk 0:01:23]} 0-1


[Site "https://www.chess.com"]

[Event "Titled Tuesday Blitz March 01 Late 2022"]
[White "Martin Duque, Jesus"]
[Black "Roque Sola, Jose Luis"]
[WhiteFideId "2208954"]
[BlackFideId "5120390"]
[WhiteElo "2243"]
[BlackElo "1983"]
[Result "1-0"]
[Round "01"]
[TimeControl "180+1"]
[Date "2022.03.02"]
[WhiteClock "0:02:11"]
[BlackClock "0:01:28"]

1. b3 {[%clk 0:02:58]}  Nf6 {[%clk 0:02:56]} 2. Bb2 {[%clk 0:02:57]}  Nc6 {[%clk 0:02:52]} 3. Nf3 {[%clk 0:02:54]}  b6 {[%clk 0:02:53]} 4. g3 {[%clk 0:02:53]}  Bb7 {[%clk 0:02:53]} 5. Bg2 {[%clk 0:02:53]}  d6 {[%clk 0:02:49]} 6. d4 {[%clk 0:02:52]}  e6 {[%clk 0:02:43]} 7. O-O {[%clk 0:02:51]}  Be7 {[%clk 0:02:43]} 8. c4 {[%clk 0:02:51]}  O-O {[%clk 0:02:42]} 9. Nc3 {[%clk 0:02:50]}  d5 {[%clk 0:02:32]} 10. cxd5 {[%clk 0:02:44]}  exd5 {[%clk 0:02:26]} 11. Rc1 {[%clk 0:02:39]}  Qd7 {[%clk 0:02:17]} 12. Ne5 {[%clk 0:02:33]}  Qd8 {[%clk 0:02:05]} 13. Nb5 {[%clk 0:02:28]}  Nxe5 {[%clk 0:01:49]} 14. dxe5 {[%clk 0:02:25]}  Nd7 {[%clk 0:01:49]} 15. Bxd5 {[%clk 0:02:25]}  Bxd5 {[%clk 0:01:42]} 16. Qxd5 {[%clk 0:02:24]}  Nc5 {[%clk 0:01:29]} 17. Rfd1 {[%clk 0:02:14]}  Qxd5 {[%clk 0:01:27]} 18. Rxd5 {[%clk 0:02:15]}  Rad8 {[%clk 0:01:27]} 19. Nxc7 {[%clk 0:02:11]}  Rxd5 {[%clk 0:01:27]} 20. Nxd5 {[%clk 0:02:11]}  Bg5 {[%clk 0:01:28]} 21. f4 {[%clk 0:02:11]} 1-0


[Site "https://www.chess.com"]

[Event "Titled Tuesday Blitz March 01 Late 2022"]
[White "Martinez Alcantara, Jose Eduardo"]
[Black "Pinheiro, Iung Alicio de O."]
[WhiteFideId "3805662"]
[BlackFideId "2104350"]
[WhiteElo "2690"]
[BlackElo "2515"]
[Result "1-0"]
[Round "01"]
[TimeControl "180+1"]
[Date "2022.03.01"]
[WhiteClock "0:00:58"]
[BlackClock "0:00:15"]

1. e4 {[%clk 0:03:00]}  c5 {[%clk 0:02:59]} 2. Nf3 {[%clk 0:02:59]}  Nc6 {[%clk 0:02:58]} 3. c3 {[%clk 0:02:57]}  d5 {[%clk 0:02:56]} 4. exd5 {[%clk 0:02:56]}  Qxd5 {[%clk 0:02:57]} 5. Na3 {[%clk 0:02:53]}  Bg4 {[%clk 0:02:55]} 6. Be2 {[%clk 0:02:51]}  Nf6 {[%clk 0:02:52]} 7. h3 {[%clk 0:02:49]}  Bh5 {[%clk 0:02:52]} 8. Qb3 {[%clk 0:02:47]}  Qxb3 {[%clk 0:02:32]} 9. axb3 {[%clk 0:02:48]}  O-O-O {[%clk 0:02:33]} 10. Nc4 {[%clk 0:02:42]}  Nd7 {[%clk 0:02:22]} 11. d3 {[%clk 0:02:26]}  f6 {[%clk 0:02:15]} 12. Be3 {[%clk 0:02:18]}  e5 {[%clk 0:01:54]} 13. Nfd2 {[%clk 0:02:17]}  Bxe2 {[%clk 0:01:48]} 14. Kxe2 {[%clk 0:02:18]}  Be7 {[%clk 0:01:42]} 15. b4 {[%clk 0:01:51]}  cxb4 {[%clk 0:01:34]} 16. Bxa7 {[%clk 0:01:52]}  Kc7 {[%clk 0:01:26]} 17. Be3 {[%clk 0:01:47]}  Bc5 {[%clk 0:01:13]} 18. Nb3 {[%clk 0:01:42]}  Bxe3 {[%clk 0:01:11]} 19. Nxe3 {[%clk 0:01:43]}  bxc3 {[%clk 0:01:05]} 20. bxc3 {[%clk 0:01:44]}  Nb6 {[%clk 0:01:02]} 21. Nc5 {[%clk 0:01:42]}  Rhe8 {[%clk 0:00:45]} 22. Rhb1 {[%clk 0:01:42]}  Rb8 {[%clk 0:00:45]} 23. Rb2 {[%clk 0:01:33]}  Nd7 {[%clk 0:00:34]} 24. Ne4 {[%clk 0:01:30]}  Ne7 {[%clk 0:00:28]} 25. Rab1 {[%clk 0:01:24]}  b6 {[%clk 0:00:28]} 26. Kf1 {[%clk 0:01:19]}  Ra8 {[%clk 0:00:26]} 27. d4 {[%clk 0:01:18]}  f5 {[%clk 0:00:21]} 28. Ng5 {[%clk 0:01:16]}  h6 {[%clk 0:00:19]} 29. Ne6+ {[%clk 0:01:14]}  Kd6 {[%clk 0:00:20]} 30. Nxg7 {[%clk 0:01:12]}  Rf8 {[%clk 0:00:20]} 31. Nc4+ {[%clk 0:01:11]}  Kd5 {[%clk 0:00:17]} 32. Nxb6+ {[%clk 0:01:02]}  Nxb6 {[%clk 0:00:17]} 33. Rxb6 {[%clk 0:01:03]}  exd4 {[%clk 0:00:18]} 34. cxd4 {[%clk 0:01:04]}  Rf7 {[%clk 0:00:16]} 35. Ne6 {[%clk 0:00:58]}  f4 {[%clk 0:00:15]} 36. Nc7+ {[%clk 0:00:58]} 1-0


[Site "https://www.chess.com"]

[Event "Titled Tuesday Blitz March 01 Late 2022"]
[White "Melkumyan, Hrant"]
[Black "Kulon, Klaudia"]
[WhiteFideId "13302485"]
[BlackFideId "1131044"]
[WhiteElo "2604"]
[BlackElo "2281"]
[Result "0-1"]
[Round "01"]
[TimeControl "180+1"]
[Date "2022.03.01"]
[WhiteClock "0:00:45"]
[BlackClock "0:00:56"]

1. c4 {[%clk 0:02:59]}  Nf6 {[%clk 0:02:58]} 2. g3 {[%clk 0:02:58]}  g6 {[%clk 0:02:58]} 3. Bg2 {[%clk 0:02:57]}  Bg7 {[%clk 0:02:59]} 4. Nc3 {[%clk 0:02:57]}  O-O {[%clk 0:02:59]} 5. d4 {[%clk 0:02:58]}  d6 {[%clk 0:02:59]} 6. Nf3 {[%clk 0:02:58]}  Nc6 {[%clk 0:02:56]} 7. O-O {[%clk 0:02:58]}  e5 {[%clk 0:02:55]} 8. dxe5 {[%clk 0:02:58]}  Nxe5 {[%clk 0:02:55]} 9. Qb3 {[%clk 0:02:49]}  c6 {[%clk 0:02:45]} 10. Bf4 {[%clk 0:02:47]}  Qe7 {[%clk 0:02:43]} 11. Rad1 {[%clk 0:02:39]}  Nfd7 {[%clk 0:02:22]} 12. Nxe5 {[%clk 0:02:01]}  dxe5 {[%clk 0:02:05]} 13. Be3 {[%clk 0:02:00]}  f5 {[%clk 0:01:51]} 14. Na4 {[%clk 0:01:52]}  Kh8 {[%clk 0:01:48]} 15. Bd2 {[%clk 0:01:46]}  Re8 {[%clk 0:01:37]} 16. Bb4 {[%clk 0:01:40]}  Qf7 {[%clk 0:01:37]} 17. Bc3 {[%clk 0:01:34]}  Nf8 {[%clk 0:01:19]} 18. Nc5 {[%clk 0:01:28]}  Ne6 {[%clk 0:01:17]} 19. Qa3 {[%clk 0:01:15]}  Nd4 {[%clk 0:01:13]} 20. Rd2 {[%clk 0:00:54]}  Qxc4 {[%clk 0:01:11]} 21. b3 {[%clk 0:00:45]}  Qxc3 {[%clk 0:01:08]} 22. Rd3 {[%clk 0:00:45]}  Nb5 {[%clk 0:00:56]} 0-1


[Site "https://www.chess.com"]

[Event "Titled Tuesday Blitz March 01 Late 2022"]
[White "Mickiewicz, Piotr"]
[Black "Dourerassou, Jonathan"]
[WhiteFideId "1114891"]
[BlackFideId "628050"]
[WhiteElo "2266"]
[BlackElo "2513"]
[Result "1-0"]
[Round "01"]
[TimeControl "180+1"]
[Date "2022.03.02"]
[WhiteClock "0:01:47"]
[BlackClock "0:01:00"]

1. Nf3 {[%clk 0:03:00]}  Nf6 {[%clk 0:02:58]} 2. g3 {[%clk 0:02:59]}  g6 {[%clk 0:02:59]} 3. Bg2 {[%clk 0:03:00]}  Bg7 {[%clk 0:02:59]} 4. O-O {[%clk 0:03:00]}  O-O {[%clk 0:03:00]} 5. d3 {[%clk 0:03:00]}  d6 {[%clk 0:03:00]} 6. Nc3 {[%clk 0:02:59]}  Nbd7 {[%clk 0:03:01]} 7. e4 {[%clk 0:02:57]}  a6 {[%clk 0:03:01]} 8. Re1 {[%clk 0:02:58]}  c5 {[%clk 0:03:00]} 9. a4 {[%clk 0:02:57]}  Rb8 {[%clk 0:03:00]} 10. h3 {[%clk 0:02:53]}  b5 {[%clk 0:03:00]} 11. axb5 {[%clk 0:02:54]}  axb5 {[%clk 0:03:00]} 12. Bg5 {[%clk 0:02:54]}  b4 {[%clk 0:02:59]} 13. Ne2 {[%clk 0:02:53]}  Bb7 {[%clk 0:02:59]} 14. Qd2 {[%clk 0:02:53]}  Re8 {[%clk 0:02:58]} 15. Bh6 {[%clk 0:02:52]}  Bh8 {[%clk 0:02:57]} 16. Ng5 {[%clk 0:02:51]}  e5 {[%clk 0:02:47]} 17. f4 {[%clk 0:02:48]}  Nh5 {[%clk 0:02:44]} 18. f5 {[%clk 0:02:42]}  d5 {[%clk 0:02:30]} 19. Rf1 {[%clk 0:02:35]}  Nhf6 {[%clk 0:02:25]} 20. exd5 {[%clk 0:02:23]}  Nb6 {[%clk 0:02:18]} 21. Nxf7 {[%clk 0:02:09]}  Kxf7 {[%clk 0:02:15]} 22. fxg6+ {[%clk 0:02:10]}  hxg6 {[%clk 0:02:15]} 23. Ra7 {[%clk 0:02:01]}  Kg8 {[%clk 0:01:49]} 24. Qg5 {[%clk 0:02:00]}  Kh7 {[%clk 0:01:33]} 25. Be4 {[%clk 0:01:59]}  Rg8 {[%clk 0:01:32]} 26. d6 {[%clk 0:01:54]}  Nh5 {[%clk 0:01:16]} 27. Qxh5 {[%clk 0:01:51]}  Rg7 {[%clk 0:00:59]} 28. Bxg7+ {[%clk 0:01:48]}  Kxg7 {[%clk 0:01:00]} 29. Qxg6# {[%clk 0:01:47]} 1-0


[Site "https://www.chess.com"]

[Event "Titled Tuesday Blitz March 01 Late 2022"]
[White "Moral Garcia, Serafin"]
[Black "Erdogdu, Mert"]
[WhiteFideId "2201925"]
[BlackFideId "6301495"]
[WhiteElo "2228"]
[BlackElo "2485"]
[Result "1-0"]
[Round "01"]
[TimeControl "180+1"]
[Date "2022.03.02"]
[WhiteClock "0:00:37"]
[BlackClock "0:00:15"]

1. c4 {[%clk 0:02:59]}  e6 {[%clk 0:03:00]} 2. Nc3 {[%clk 0:02:58]}  d5 {[%clk 0:03:00]} 3. g3 {[%clk 0:02:56]}  c5 {[%clk 0:03:00]} 4. Bg2 {[%clk 0:02:52]}  d4 {[%clk 0:03:00]} 5. Na4 {[%clk 0:02:47]}  Nf6 {[%clk 0:02:55]} 6. d3 {[%clk 0:02:42]}  Nc6 {[%clk 0:02:47]} 7. Nf3 {[%clk 0:02:39]}  e5 {[%clk 0:02:45]} 8. O-O {[%clk 0:02:38]}  Be7 {[%clk 0:02:43]} 9. Bg5 {[%clk 0:02:37]}  Nd7 {[%clk 0:02:34]} 10. Bxe7 {[%clk 0:02:36]}  Qxe7 {[%clk 0:02:35]} 11. e3 {[%clk 0:02:35]}  O-O {[%clk 0:02:35]} 12. Re1 {[%clk 0:02:32]}  Qd6 {[%clk 0:02:32]} 13. a3 {[%clk 0:02:22]}  a5 {[%clk 0:01:58]} 14. exd4 {[%clk 0:02:03]}  cxd4 {[%clk 0:01:56]} 15. Nd2 {[%clk 0:02:03]}  f5 {[%clk 0:01:48]} 16. Rc1 {[%clk 0:02:00]}  Nc5 {[%clk 0:01:37]} 17. Nxc5 {[%clk 0:01:58]}  Qxc5 {[%clk 0:01:38]} 18. Qb3 {[%clk 0:01:41]}  Bd7 {[%clk 0:01:00]} 19. Qb5 {[%clk 0:01:38]}  b6 {[%clk 0:00:53]} 20. Qxc5 {[%clk 0:01:33]}  bxc5 {[%clk 0:00:54]} 21. Bxc6 {[%clk 0:01:33]}  Bxc6 {[%clk 0:00:54]} 22. Rxe5 {[%clk 0:01:34]}  Rab8 {[%clk 0:00:52]} 23. b3 {[%clk 0:01:30]}  f4 {[%clk 0:00:51]} 24. Rxc5 {[%clk 0:01:29]}  Ba8 {[%clk 0:00:52]} 25. Re1 {[%clk 0:01:18]}  a4 {[%clk 0:00:49]} 26. b4 {[%clk 0:01:17]}  Rb6 {[%clk 0:00:49]} 27. Rce5 {[%clk 0:01:08]}  fxg3 {[%clk 0:00:45]} 28. fxg3 {[%clk 0:00:56]}  Rbf6 {[%clk 0:00:44]} 29. Re8 {[%clk 0:00:56]}  h6 {[%clk 0:00:40]} 30. Rxf8+ {[%clk 0:00:55]}  Rxf8 {[%clk 0:00:39]} 31. c5 {[%clk 0:00:50]}  Bc6 {[%clk 0:00:38]} 32. Nc4 {[%clk 0:00:48]}  Bb5 {[%clk 0:00:38]} 33. Ne5 {[%clk 0:00:48]}  Re8 {[%clk 0:00:35]} 34. c6 {[%clk 0:00:45]}  Bxc6 {[%clk 0:00:34]} 35. Kf2 {[%clk 0:00:45]}  Bb5 {[%clk 0:00:33]} 36. Nf3 {[%clk 0:00:40]}  Rf8 {[%clk 0:00:31]} 37. Ke2 {[%clk 0:00:40]}  Bxd3+ {[%clk 0:00:20]} 38. Kxd3 {[%clk 0:00:41]}  Rxf3+ {[%clk 0:00:21]} 39. Kxd4 {[%clk 0:00:41]}  Rxa3 {[%clk 0:00:22]} 40. Rb1 {[%clk 0:00:40]}  Rf3 {[%clk 0:00:17]} 41. b5 {[%clk 0:00:41]}  Rf8 {[%clk 0:00:17]} 42. b6 {[%clk 0:00:41]}  a3 {[%clk 0:00:17]} 43. Ra1 {[%clk 0:00:38]}  Ra8 {[%clk 0:00:15]} 44. Kc5 {[%clk 0:00:37]}  Kf7 {[%clk 0:00:15]} 45. b7 {[%clk 0:00:37]}  Rb8 {[%clk 0:00:15]} 46. Kb6 {[%clk 0:00:37]}  Ke7 {[%clk 0:00:15]} 47. Rxa3 {[%clk 0:00:37]}  Kd7 {[%clk 0:00:15]} 48. Ra8 {[%clk 0:00:37]} 1-0


[Site "https://www.chess.com"]

[Event "Titled Tuesday Blitz March 01 Late 2022"]
[White "Niemann, Hans Moke"]
[Black "Dobre, Claudiu-Cristian"]
[WhiteFideId "2093596"]
[BlackFideId "1211854"]
[WhiteElo "2636"]
[BlackElo "2207"]
[Result "1-0"]
[Round "01"]
[TimeControl "180+1"]
[Date "2022.03.01"]
[WhiteClock "0:00:33"]
[BlackClock "0:00:01"]

1. d4 {[%clk 0:02:59]}  d5 {[%clk 0:02:59]} 2. Nc3 {[%clk 0:02:59]}  c6 {[%clk 0:02:58]} 3. Bf4 {[%clk 0:03:00]}  Nf6 {[%clk 0:02:57]} 4. e3 {[%clk 0:03:00]}  Bf5 {[%clk 0:02:56]} 5. Bd3 {[%clk 0:03:00]}  Bxd3 {[%clk 0:02:54]} 6. cxd3 {[%clk 0:03:00]}  e6 {[%clk 0:02:52]} 7. Qb3 {[%clk 0:03:00]}  Qb6 {[%clk 0:02:51]} 8. Qc2 {[%clk 0:03:01]}  Be7 {[%clk 0:02:41]} 9. Nf3 {[%clk 0:03:01]}  O-O {[%clk 0:02:41]} 10. h3 {[%clk 0:03:01]}  c5 {[%clk 0:02:37]} 11. dxc5 {[%clk 0:02:59]}  Bxc5 {[%clk 0:02:24]} 12. O-O {[%clk 0:02:58]}  Bd6 {[%clk 0:02:24]} 13. Bxd6 {[%clk 0:02:52]}  Qxd6 {[%clk 0:02:22]} 14. Nb5 {[%clk 0:02:33]}  Qc6 {[%clk 0:02:22]} 15. Qb3 {[%clk 0:02:30]}  Nbd7 {[%clk 0:02:10]} 16. Rfc1 {[%clk 0:02:27]}  Qb6 {[%clk 0:02:10]} 17. Nc7 {[%clk 0:02:25]}  Rac8 {[%clk 0:02:06]} 18. Qxb6 {[%clk 0:02:26]}  Nxb6 {[%clk 0:01:56]} 19. Nb5 {[%clk 0:02:26]}  Rxc1+ {[%clk 0:01:57]} 20. Rxc1 {[%clk 0:02:26]}  Rc8 {[%clk 0:01:57]} 21. Rc3 {[%clk 0:02:18]}  Rxc3 {[%clk 0:01:48]} 22. Nxc3 {[%clk 0:02:15]}  a6 {[%clk 0:01:42]} 23. Nd4 {[%clk 0:02:12]}  Kf8 {[%clk 0:01:36]} 24. Nb3 {[%clk 0:02:11]}  Ne8 {[%clk 0:01:33]} 25. Kf1 {[%clk 0:02:10]}  Ke7 {[%clk 0:01:29]} 26. Nc5 {[%clk 0:02:10]}  Nd6 {[%clk 0:01:28]} 27. Ke2 {[%clk 0:02:10]}  Nd7 {[%clk 0:01:27]} 28. Nb3 {[%clk 0:02:10]}  b6 {[%clk 0:01:22]} 29. Nd4 {[%clk 0:02:09]}  Nb8 {[%clk 0:01:13]} 30. f4 {[%clk 0:02:09]}  Kd7 {[%clk 0:01:04]} 31. g4 {[%clk 0:02:03]}  f6 {[%clk 0:01:01]} 32. f5 {[%clk 0:02:01]}  exf5 {[%clk 0:00:55]} 33. Nxd5 {[%clk 0:02:01]}  fxg4 {[%clk 0:00:45]} 34. Nxb6+ {[%clk 0:02:01]}  Ke7 {[%clk 0:00:32]} 35. hxg4 {[%clk 0:01:57]}  g6 {[%clk 0:00:32]} 36. e4 {[%clk 0:01:54]}  Nf7 {[%clk 0:00:31]} 37. Nd5+ {[%clk 0:01:53]}  Kd6 {[%clk 0:00:29]} 38. Nf3 {[%clk 0:01:50]}  f5 {[%clk 0:00:24]} 39. gxf5 {[%clk 0:01:50]}  gxf5 {[%clk 0:00:24]} 40. Nf4 {[%clk 0:01:43]}  fxe4 {[%clk 0:00:22]} 41. dxe4 {[%clk 0:01:44]}  Ne5 {[%clk 0:00:21]} 42. Nd4 {[%clk 0:01:40]}  Nc4 {[%clk 0:00:20]} 43. b3 {[%clk 0:01:39]}  Ke5 {[%clk 0:00:19]} 44. Nfe6 {[%clk 0:01:28]}  Nd6 {[%clk 0:00:17]} 45. Ke3 {[%clk 0:01:27]}  Nxe4 {[%clk 0:00:16]} 46. Nf8 {[%clk 0:01:26]}  h6 {[%clk 0:00:15]} 47. Ng6+ {[%clk 0:01:21]}  Kf6 {[%clk 0:00:16]} 48. Nf4 {[%clk 0:01:08]}  Nc3 {[%clk 0:00:16]} 49. a4 {[%clk 0:01:08]}  Kg5 {[%clk 0:00:16]} 50. Nfe6+ {[%clk 0:01:03]}  Kg4 {[%clk 0:00:16]} 51. Kd3 {[%clk 0:00:58]}  Na2 {[%clk 0:00:15]} 52. Nc5 {[%clk 0:00:54]}  h5 {[%clk 0:00:14]} 53. Ne4 {[%clk 0:00:55]}  h4 {[%clk 0:00:14]} 54. Nf2+ {[%clk 0:00:53]}  Kg3 {[%clk 0:00:14]} 55. Ke3 {[%clk 0:00:51]}  Nc3 {[%clk 0:00:13]} 56. Nf5+ {[%clk 0:00:50]}  Kg2 {[%clk 0:00:13]} 57. Nxh4+ {[%clk 0:00:51]}  Kf1 {[%clk 0:00:13]} 58. Nd3 {[%clk 0:00:48]}  Nc6 {[%clk 0:00:13]} 59. Nf5 {[%clk 0:00:46]}  Nd5+ {[%clk 0:00:11]} 60. Kd2 {[%clk 0:00:45]}  Ndb4 {[%clk 0:00:11]} 61. Nxb4 {[%clk 0:00:42]}  Nxb4 {[%clk 0:00:11]} 62. Kc3 {[%clk 0:00:43]}  a5 {[%clk 0:00:10]} 63. Nd4 {[%clk 0:00:37]}  Kf2 {[%clk 0:00:09]} 64. Nc2 {[%clk 0:00:35]}  Na2+ {[%clk 0:00:08]} 65. Kc4 {[%clk 0:00:35]}  Ke2 {[%clk 0:00:07]} 66. b4 {[%clk 0:00:31]}  axb4 {[%clk 0:00:06]} 67. Nxb4 {[%clk 0:00:32]}  Nc1 {[%clk 0:00:04]} 68. a5 {[%clk 0:00:32]}  Ke3 {[%clk 0:00:01]} 69. a6 {[%clk 0:00:32]}  Ne2 {[%clk 0:00:01]} 70. a7 {[%clk 0:00:33]} 1-0


[Site "https://www.chess.com"]